bitfinex/quotes_BTCUSD_20250618
["timestamp","ask_amount","ask_price","bid_price","bid_amount"]
[1750272962173,5.79351622,104000.0,103990.0,0.00114193]
[1750272962636,5.71417537,104000.0,103990.0,0.00114193]
[1750272962845,5.34451717,104000.0,103990.0,0.00114193]
[1750272963104,5.79191622,104000.0,103990.0,0.00114193]
[1750272963341,5.74617537,104000.0,103990.0,0.00114193]
[1750272963554,5.71417537,104000.0,103990.0,0.00114193]
[1750272963783,5.88949537,104000.0,103990.0,0.00114193]
[1750272964690,5.15017897,104000.0,103990.0,0.00114193]
[1750272964893,5.88949537,104000.0,103990.0,0.00114193]
[1750272965379,5.24827541,104000.0,103990.0,0.00114193]
[1750272965591,5.42359541,104000.0,103990.0,0.00114193]
[1750272966067,5.79325361,104000.0,103990.0,0.00114193]
[1750272966284,5.42331541,104000.0,103990.0,0.20308432]
[1750272966524,5.24827541,104000.0,103990.0,0.20308432]
[1750272966749,0.007,104000.0,103990.0,0.29573194]
[1750272966965,0.01661473,104000.0,103990.0,0.29573194]
[1750272967192,0.3766582,104000.0,103990.0,0.29573194]
[1750272967625,0.40550286,104000.0,103990.0,0.29573194]
[1750272967849,0.41511805,104000.0,103990.0,0.26313194]
[1750272968063,0.39588776,104000.0,103990.0,0.29513194]
[1750272968275,0.59588776,104000.0,103990.0,0.29513194]
[1750272968479,0.38627284,104000.0,103990.0,0.29513194]
[1750272968902,0.007,104000.0,103990.0,0.3913737]
[1750272969127,0.007,104000.0,103990.0,0.46802775]
[1750272970050,0.003,104000.0,103990.0,0.3903737]
[1750272970270,0.004,104000.0,103990.0,0.3903737]
[1750272970499,0.004,104000.0,103990.0,0.5650537]
[1750272970713,0.002,104000.0,103990.0,0.5650537]
[1750272971161,0.003,104000.0,103990.0,0.5680537]
[1750272974367,1.29385429,104000.0,103990.0,0.00314193]
[1750272974620,5.73236851,104000.0,103990.0,0.00314193]
[1750272974847,5.88764476,104000.0,103990.0,0.00314193]
[1750272975274,5.88764476,104000.0,103990.0,0.00014193]
[1750272975275,5.79049554,104000.0,103990.0,0.00014193]
[1750272975478,5.76049554,104000.0,103990.0,0.00014193]
[1750272975620,5.39083734,104000.0,103990.0,0.00014193]
[1750272975828,5.16367914,104000.0,103990.0,0.00014193]
[1750272976030,5.54033734,104000.0,103990.0,0.00114193]
[1750272976820,5.57213734,104000.0,103990.0,0.00114193]
[1750272977019,6.0022456,104000.0,103990.0,0.00114193]
[1750272977304,6.0022456,104000.0,103990.0,0.00214193]
[1750272977305,6.0042456,104000.0,103990.0,0.00214193]
[1750272977691,0.01923742,103960.0,103950.0,0.27223937]
[1750272977888,0.60051453,103960.0,103950.0,0.24238007]
[1750272978104,0.60051453,103960.0,103950.0,0.25119943]
[1750272978105,0.01923677,103960.0,103950.0,0.25119943]
[1750272978472,0.37927645,103960.0,103950.0,0.25119943]
[1750272978665,0.38889497,103960.0,103950.0,0.28149943]
[1750272978785,0.39851368,103960.0,103950.0,0.28149943]
[1750272978997,0.02985548,103960.0,103950.0,0.28449943]
[1750272979262,0.38989497,103960.0,103950.0,0.28449943]
[1750272979482,0.60251453,103960.0,103950.0,0.19674089]
[1750272979602,0.39089497,103960.0,103950.0,0.23521961]
[1750272979806,0.41013239,103960.0,103950.0,0.23521961]
[1750272980019,0.59289629,103960.0,103950.0,0.0051407]
[1750272980219,0.58327767,103960.0,103950.0,0.0051407]
[1750272980431,0.58227767,103960.0,103950.0,0.0021407]
[1750272980646,4.89114267,103960.0,103950.0,0.0001407]
[1750272980851,4.88252387,103960.0,103950.0,0.0011407]
[1750272981070,4.51586567,103960.0,103950.0,0.21378062]
[1750272981277,4.88552387,103960.0,103950.0,0.0021407]
[1750272981476,5.89385943,103960.0,103950.0,0.0021407]
[1750272981686,4.85486567,103960.0,103950.0,0.21278025]
[1750272981930,0.93389601,103960.0,103950.0,0.2223997]
[1750272982089,0.93589601,103960.0,103950.0,0.2233997]
[1750272982309,0.93289601,103960.0,103950.0,0.21278044]
[1750272982519,0.93289601,103960.0,103950.0,0.22239998]
[1750272982785,0.93789601,103960.0,103950.0,0.21378044]
[1750272982960,0.92327758,103960.0,103950.0,0.0011407]
[1750272983389,5.23414258,103960.0,103950.0,0.0011407]
[1750272983798,5.26734258,103960.0,103950.0,0.20516089]
[1750272984018,5.25772387,103960.0,103950.0,0.0031407]
[1750272984222,5.22152387,103960.0,103950.0,0.0001407]
[1750272984555,5.22252387,103960.0,103950.0,0.0011407]
[1750272985230,5.59218207,103960.0,103950.0,0.20316089]
[1750272985392,5.24176166,103960.0,103950.0,0.22240016]
[1750272985587,0.19240019,103950.0,103930.0,0.00016577]
[1750272985806,0.92430768,103940.0,103930.0,0.00016577]
[1750272986053,0.3788975,103940.0,103930.0,0.20222484]
[1750272986274,0.7774172,103940.0,103930.0,0.2310893]
[1750272986681,0.96983664,103940.0,103930.0,0.2118466]
[1750272986889,0.96021627,103940.0,103930.0,0.21184651]
[1750272987012,0.7495557,103940.0,103930.0,0.23408911]
[1750272987215,0.98045665,103940.0,103930.0,0.2244679]
[1750272987438,0.97083655,103940.0,103930.0,0.20322465]
[1750272987644,0.39913862,103940.0,103930.0,0.22246735]
[1750272987889,0.41838021,103940.0,103930.0,0.22246735]
[1750272988112,0.78903841,103940.0,103930.0,0.22446735]
[1750272988542,0.81779074,103940.0,103930.0,0.22446735]
[1750272988753,0.79854943,103940.0,103930.0,0.22446735]
[1750272988951,0.78892915,103940.0,103930.0,0.22446735]
[1750272989160,0.79854943,103940.0,103930.0,0.25516735]
[1750272989412,0.8081699,103940.0,103930.0,0.25516735]
[1750272989627,0.81779065,103940.0,103930.0,0.25516735]
[1750272989842,1.01983028,103940.0,103930.0,0.22446753]
[1750272990074,1.01983028,103940.0,103930.0,0.20522465]
[1750272990319,1.0005899,103940.0,103930.0,0.21484623]
[1750272990535,0.438513,103940.0,103930.0,0.22446753]
[1750272990760,1.0005899,103940.0,103930.0,0.22446753]
[1750272990967,1.0005899,103940.0,103930.0,0.21484623]
[1750272991173,1.1779099,103940.0,103930.0,0.00316577]
[1750272991393,5.72642466,103940.0,103930.0,0.00316577]
[1750272992969,5.72542466,103940.0,103930.0,0.00116577]
[1750272993197,5.72442466,103940.0,103930.0,0.00016577]
[1750272993418,5.63327544,103940.0,103930.0,0.00116577]
[1750272993622,5.62927544,103940.0,103930.0,0.00016577]
[1750272994054,5.63627544,103940.0,103930.0,0.00116577]
[1750272994259,5.63527544,103940.0,103930.0,0.00116577]
[1750272994463,5.73142466,103940.0,103930.0,0.00116577]
[1750272994665,5.73342466,103940.0,103930.0,0.00116577]
[1750272995141,5.74796551,103940.0,103930.0,0.00116577]
[1750272995555,6.11762371,103940.0,103930.0,0.00116577]
[1750272995754,5.74796551,103940.0,103930.0,0.00116577]
[1750272996873,6.11762371,103940.0,103930.0,0.00116577]
[1750272997273,5.74796551,103940.0,103930.0,0.00116577]
[1750272998347,5.65181629,103940.0,103930.0,0.00116577]
[1750273000202,0.20205888,103930.0,103920.0,0.00151484]
[1750273000428,5.01102384,103930.0,103920.0,0.00151484]
[1750273000655,5.76792289,103930.0,103920.0,0.00151484]
[1750273001104,0.55172101,103910.0,103900.0,0.0001]
[1750273001327,1.09785921,103910.0,103900.0,0.0001]
[1750273001559,0.70403097,103910.0,103900.0,0.0001]
[1750273001790,1.07368917,103910.0,103900.0,0.0001]
[1750273002043,1.24627178,103910.0,103900.0,0.0001]
[1750273002266,5.65242743,103910.0,103900.0,0.0001]
[1750273002475,5.55627821,103910.0,103900.0,0.0001]
[1750273003150,0.02887779,103880.0,103870.0,0.26582242]
[1750273003364,0.03186717,103880.0,103870.0,0.2850766]
[1750273003573,0.61330809,103880.0,103870.0,0.29470355]
[1750273003773,0.38890978,103880.0,103870.0,0.30432986]
[1750273003983,0.47715262,103880.0,103870.0,0.30432986]
[1750273004179,0.30749442,103880.0,103870.0,0.30432986]
[1750273004388,0.30749442,103880.0,103870.0,0.30832986]
[1750273004389,0.47815262,103880.0,103870.0,0.30832986]
[1750273004609,0.6706832,103880.0,103870.0,0.25807623]
[1750273005026,0.6706832,103880.0,103870.0,0.267703]
[1750273005027,0.47815336,103880.0,103870.0,0.267703]
[1750273005234,0.46852697,103880.0,103870.0,0.26775691]
[1750273005447,0.6706832,103880.0,103870.0,0.22543014]
[1750273005654,0.6716832,103880.0,103870.0,0.22543014]
[1750273005933,0.66105727,103880.0,103870.0,0.2118031]
[1750273006138,0.66005727,103880.0,103870.0,0.22343033]
[1750273006320,0.66105727,103880.0,103870.0,0.22343033]
[1750273006552,0.66105727,103880.0,103870.0,0.23305747]
[1750273006744,0.66205727,103880.0,103870.0,0.22343033]
[1750273007239,4.97192227,103880.0,103870.0,0.23305747]
[1750273007403,5.66232815,103880.0,103870.0,0.002]
[1750273007605,5.75856991,103880.0,103870.0,0.002]
[1750273008233,5.78591827,103880.0,103870.0,0.002]
[1750273008439,5.81671827,103880.0,103870.0,0.002]
[1750273008708,5.78936991,103880.0,103870.0,0.002]
[1750273009157,5.78836991,103880.0,103870.0,0.002]
[1750273009573,0.01925566,103860.0,103850.0,0.28506393]
[1750273009789,0.02224485,103860.0,103850.0,0.29469255]
[1750273009996,0.37264758,103860.0,103850.0,0.29469255]
[1750273010235,0.02888641,103850.0,103840.0,0.0432174]
[1750273010456,0.34963001,103840.0,103830.0,0.0158594]
[1750273010674,1.55415217,103840.0,103830.0,0.0158594]
[1750273010886,5.9094993,103840.0,103830.0,0.0158594]
[1750273012451,5.68779845,103840.0,103830.0,0.0158594]
[1750273012660,5.49930025,103840.0,103830.0,0.0168594]
[1750273013084,5.86895845,103840.0,103830.0,0.0168594]
[1750273013297,6.03994852,103840.0,103830.0,0.0168594]
[1750273013517,6.03694852,103840.0,103830.0,0.0158594]
[1750273013722,5.68779845,103840.0,103830.0,0.0158594]
[1750273013955,5.91783845,103840.0,103830.0,0.0178594]
[1750273014175,5.91783845,103840.0,103830.0,0.0158594]
[1750273014788,5.91883845,103840.0,103830.0,0.0158594]
[1750273014985,6.04578767,103840.0,103830.0,0.0158594]
[1750273015195,5.94963845,103840.0,103830.0,0.0158594]
[1750273015398,5.21549291,103840.0,103830.0,0.0168594]
[1750273015605,5.95480931,103840.0,103830.0,0.0168594]
[1750273015816,5.95680931,103840.0,103830.0,0.0168594]
[1750273018535,6.05295853,103840.0,103830.0,0.0168594]
[1750273019717,6.02215853,103840.0,103830.0,0.0168594]
[1750273020036,4.85211849,103830.0,103820.0,0.0001]
[1750273020247,5.49361845,103830.0,103820.0,0.0001]
[1750273020823,5.55268534,103830.0,103820.0,0.0001]
[1750273021024,5.49361845,103830.0,103820.0,0.0001]
[1750273021651,5.49461845,103830.0,103820.0,0.0001]
[1750273022051,5.49501845,103830.0,103820.0,0.0001]
[1750273022305,4.95899109,103830.0,103820.0,0.21200492]
[1750273022520,5.11676496,103830.0,103820.0,0.28583614]
[1750273022736,0.002,103830.0,103820.0,0.28683614]
[1750273022953,0.38128849,103830.0,103820.0,0.28683614]
[1750273023174,0.59317346,103830.0,103820.0,0.0653]
[1750273023388,4.90303846,103830.0,103820.0,0.25523679]
[1750273023625,0.3716582,103830.0,103820.0,0.29506819]
[1750273024055,0.002,103830.0,103820.0,0.29506819]
[1750273024710,0.002,103830.0,103820.0,0.39130995]
[1750273024941,0.001,103830.0,103820.0,0.39130995]
[1750273025346,0.001,103830.0,103820.0,0.37074557]
[1750273025761,0.001,103830.0,103820.0,0.37274557]
[1750273025972,0.21182341,103860.0,103850.0,0.27674371]
[1750273026178,0.79110949,103860.0,103850.0,0.28684456]
[1750273026385,0.58148161,103860.0,103850.0,0.04180122]
[1750273026539,0.58148161,103860.0,103850.0,0.24401585]
[1750273026752,0.58148161,103860.0,103850.0,0.25364475]
[1750273027176,0.58148161,103860.0,103850.0,0.25364484]
[1750273027376,0.0192565,103860.0,103850.0,0.26327364]
[1750273027576,0.40153122,103860.0,103850.0,0.27290226]
[1750273027874,0.02888354,103860.0,103850.0,0.30580226]
[1750273028034,0.59409877,103860.0,103850.0,0.27691585]
[1750273028247,0.58248151,103860.0,103850.0,0.00147195]
[1750273028631,0.58248151,103860.0,103850.0,0.00247195]
[1750273028632,1.01972327,103860.0,103850.0,0.00247195]
[1750273028846,5.12958827,103860.0,103850.0,0.00247195]
[1750273029090,0.38474085,103850.0,103820.0,0.0001]
[1750273029344,0.42155692,103810.0,103800.0,0.75240483]
[1750273029574,0.92158354,103810.0,103800.0,0.54046]
[1750273029810,5.03144854,103810.0,103800.0,0.51006]
[1750273030073,5.4973485,103810.0,103800.0,0.51006]
[1750273030321,5.4973485,103810.0,103800.0,0.00504631]
[1750273030322,5.89769025,103810.0,103800.0,0.00504631]
[1750273030555,5.92829025,103810.0,103800.0,0.00504631]
[1750273030792,5.92876317,103810.0,103800.0,0.00504631]
[1750273031236,6.07876317,103810.0,103800.0,0.00504631]
[1750273031696,6.08076317,103810.0,103800.0,0.00904631]
[1750273031937,5.40411575,103810.0,103800.0,0.00904631]
[1750273032173,5.80597395,103810.0,103800.0,0.00904631]
[1750273032407,5.84227395,103810.0,103800.0,0.00904631]
[1750273032652,5.84027395,103810.0,103800.0,0.00504631]
[1750273032883,5.92315749,103810.0,103800.0,0.001]
[1750273033143,0.0289059,103780.0,103770.0,0.22164195]
[1750273033387,0.02890831,103770.0,103760.0,0.2438027]
[1750273033620,0.61057355,103770.0,103760.0,0.26307673]
[1750273033863,0.38893019,103770.0,103760.0,0.26307673]
[1750273034113,0.3696582,103770.0,103760.0,0.26307673]
[1750273034343,0.37929406,103770.0,103760.0,0.29527673]
[1750273034571,0.39856651,103770.0,103760.0,0.29527673]
[1750273034801,0.21974452,103770.0,103760.0,0.29527673]
[1750273035029,0.02938075,103770.0,103760.0,0.29527673]
[1750273035261,0.21974452,103770.0,103760.0,0.29527673]
[1750273035486,0.00047262,103770.0,103760.0,0.29527673]
[1750273035738,0.00047262,103770.0,103760.0,0.39451849]
[1750273035966,0.00247262,103770.0,103760.0,0.57267849]
[1750273036198,0.00347262,103770.0,103760.0,0.57275849]
[1750273036646,0.00347262,103770.0,103760.0,0.38951849]
[1750273037397,0.00347262,103770.0,103760.0,0.29327673]
[1750273038875,0.00347262,103770.0,103760.0,0.38951849]
[1750273039319,0.00347262,103770.0,103760.0,0.93713669]
[1750273039745,0.00347262,103770.0,103760.0,0.56747849]
[1750273040594,0.00347262,103770.0,103760.0,0.38951849]
[1750273041041,0.00347262,103770.0,103760.0,0.29327673]
[1750273042290,0.00347262,103770.0,103760.0,0.47143673]
[1750273042479,0.00347262,103770.0,103760.0,0.29327673]
[1750273042736,0.00347262,103770.0,103760.0,0.47143673]
[1750273043156,0.00347262,103770.0,103760.0,0.29327673]
[1750273044171,0.00347262,103770.0,103760.0,0.25143976]
[1750273044172,0.04201762,103770.0,103760.0,0.25143976]
[1750273044407,0.23475155,103770.0,103760.0,0.25143976]
[1750273044618,0.02274452,103770.0,103760.0,0.26107673]
[1750273044858,0.00347262,103770.0,103760.0,0.29247673]
[1750273045065,0.00347262,103770.0,103760.0,0.38871849]
[1750273045706,0.00347262,103770.0,103760.0,0.38707849]
[1750273047912,0.00347262,103770.0,103760.0,0.56539849]
[1750273049605,0.00347262,103770.0,103760.0,0.93505669]
[1750273049837,3.454e-05,103770.0,103760.0,1.56739489]
[1750273050052,0.07665405,103820.0,103810.0,0.22155749]
[1750273050264,0.07665405,103820.0,103810.0,0.25315749]
[1750273050494,0.11965237,103820.0,103810.0,0.25315749]
[1750273050709,0.11970228,103820.0,103810.0,0.28335749]
[1750273050930,0.11007106,103820.0,103810.0,0.28335749]
[1750273051187,0.11007106,103820.0,103800.0,0.0613]
[1750273051188,0.21192496,103810.0,103800.0,0.0613]
[1750273051392,0.02889754,103810.0,103800.0,0.21208685]
[1750273051613,0.60383776,103810.0,103800.0,0.00014128]
[1750273051813,4.69144863,103810.0,103800.0,0.20245322]
[1750273052025,4.52838209,103810.0,103800.0,0.22172011]
[1750273052233,0.39855574,103810.0,103800.0,0.23135337]
[1750273052349,0.38892295,103810.0,103800.0,0.23135337]
[1750273052559,0.38529044,103810.0,103800.0,0.23235337]
[1750273052761,0.03489718,103810.0,103800.0,0.23235337]
[1750273053004,0.04751935,103810.0,103800.0,0.23235337]
[1750273053215,5.27330894,103810.0,103800.0,0.00114128]
[1750273053414,5.23851956,103810.0,103800.0,0.00114128]
[1750273053765,4.79593182,103810.0,103800.0,0.00114128]
[1750273053899,5.16559002,103810.0,103800.0,0.00114128]
[1750273054317,4.79593182,103810.0,103800.0,0.00114128]
[1750273054519,5.16859002,103810.0,103800.0,0.00214128]
[1750273054983,5.13669002,103810.0,103800.0,0.00214128]
[1750273055190,4.70044826,103810.0,103800.0,0.20445331]
[1750273055425,4.70044826,103810.0,103800.0,0.00214128]
[1750273055628,4.69081565,103810.0,103800.0,0.00214128]
[1750273055835,4.78705741,103810.0,103800.0,0.00214128]
[1750273057680,0.67719241,103810.0,103800.0,0.00214128]
[1750273057897,0.58095065,103810.0,103800.0,0.00214128]
[1750273058093,0.60021614,103810.0,103800.0,0.21408713]
[1750273058299,0.59058316,103810.0,103800.0,0.21408722]
[1750273058502,0.60021605,103810.0,103800.0,0.21408722]
[1750273058704,0.31716729,103810.0,103800.0,0.00214128]
[1750273058937,0.68682549,103810.0,103800.0,0.00214128]
[1750273060138,0.31716729,103810.0,103800.0,0.00214128]
[1750273060368,0.68682549,103810.0,103800.0,0.00214128]
[1750273060594,1.05912549,103810.0,103800.0,0.00214128]
[1750273060809,5.67963876,103810.0,103800.0,0.00214128]
[1750273061284,5.70860376,103810.0,103800.0,0.00214128]
[1750273062024,0.04818133,103770.0,103760.0,0.29333729]
[1750273062255,0.40820367,103770.0,103760.0,0.27027445]
[1750273062483,0.61057429,103770.0,103760.0,0.26063748]
[1750273062702,0.02890868,103770.0,103760.0,0.27027389]
[1750273062921,0.01927199,103770.0,103760.0,0.26063618]
[1750273063147,0.00963586,103770.0,103760.0,0.29153618]
[1750273063370,0.01941357,103770.0,103760.0,0.29153618]
[1750273063592,0.0290497,103770.0,103760.0,0.29153618]
[1750273063810,0.03968602,103770.0,103760.0,0.29653618]
[1750273064036,0.0300497,103770.0,103760.0,0.29653618]
[1750273064250,0.05032244,103770.0,103760.0,0.26763618]
[1750273064463,0.41998138,103770.0,103760.0,0.2579993]
[1750273064673,0.03105054,103770.0,103760.0,0.24836233]
[1750273064882,0.39107177,103770.0,103760.0,0.2579993]
[1750273065119,0.20214167,103770.0,103760.0,0.2888993]
[1750273065346,0.00214167,103770.0,103760.0,0.2888993]
[1750273065585,0.01177762,103770.0,103760.0,0.2888993]
[1750273065807,0.01177771,103770.0,103760.0,0.2888993]
[1750273066043,0.01177753,103770.0,103760.0,0.2888993]
[1750273066266,0.00214167,103770.0,103760.0,0.2888993]
[1750273066526,0.02141366,103770.0,103760.0,0.2888993]
[1750273066758,0.00214167,103770.0,103760.0,0.2888993]
[1750273067210,0.01177762,103770.0,103760.0,0.2888993]
[1750273067410,0.00214167,103770.0,103760.0,0.2888993]
[1750273067659,0.00214167,103770.0,103760.0,0.38514106]
[1750273068143,0.00963521,103780.0,103770.0,0.22164289]
[1750273068344,0.38892834,103780.0,103770.0,0.25454289]
[1750273068589,0.36890329,103790.0,103780.0,0.22162152]
[1750273068822,0.71929238,103790.0,103780.0,0.21198641]
[1750273069036,0.93125819,103790.0,103780.0,0.22162208]
[1750273069243,0.94089302,103790.0,103780.0,0.22162208]
[1750273069463,0.95212447,103790.0,103780.0,0.19271535]
[1750273069673,0.93125875,103790.0,103780.0,0.2216218]
[1750273069874,0.01927014,103780.0,103770.0,0.21200592]
[1750273070151,0.4025533,103780.0,103770.0,0.21500647]
[1750273070347,0.39092834,103780.0,103770.0,0.22664251]
[1750273070796,0.39956382,103780.0,103770.0,0.22364251]
[1750273071009,0.39956373,103780.0,103770.0,0.22364251]
[1750273071149,0.01063493,103780.0,103770.0,0.22364251]
[1750273071352,0.40255292,103780.0,103770.0,0.22364251]
[1750273071547,0.40056345,103780.0,103770.0,0.22664251]
[1750273071769,0.40056336,103780.0,103770.0,0.22664251]
[1750273071974,0.002,103780.0,103770.0,0.28944251]
[1750273072148,0.3716582,103780.0,103770.0,0.28944251]
[1750273072363,0.002,103780.0,103770.0,0.38568427]
[1750273078488,0.39092834,103780.0,103770.0,0.25764251]
[1750273078698,0.3716582,103780.0,103770.0,0.22664251]
[1750273078909,0.002,103780.0,103770.0,0.22664251]
[1750273079154,0.002,103780.0,103770.0,0.43846251]
[1750273079596,0.01163493,103780.0,103770.0,0.43846251]
[1750273079800,0.02127004,103780.0,103770.0,0.43842251]
[1750273080028,0.03090543,103780.0,103770.0,0.43842251]
[1750273080281,0.02127004,103780.0,103770.0,0.43842251]
[1750273080491,0.23325627,103780.0,103770.0,0.43842251]
[1750273080727,0.6029153,103780.0,103770.0,0.21700694]
[1750273080934,0.66993424,103780.0,103770.0,0.20737044]
[1750273081174,0.66029848,103780.0,103770.0,0.21700685]
[1750273081370,0.400564,103780.0,103770.0,0.23627921]
[1750273081611,0.61255078,103780.0,103770.0,0.22664317]
[1750273081835,0.60291576,103780.0,103770.0,0.005]
[1750273082065,4.72570998,103780.0,103770.0,0.005]
[1750273082714,4.72570998,103780.0,103770.0,0.21700685]
[1750273082932,0.21163511,103780.0,103770.0,0.22664289]
[1750273083147,0.0405412,103780.0,103770.0,0.25674289]
[1750273083371,0.23325655,103780.0,103770.0,0.24710685]
[1750273083580,0.60056382,103780.0,103770.0,0.25674289]
[1750273083793,0.3716582,103780.0,103770.0,0.25674289]
[1750273084003,0.39092852,103780.0,103770.0,0.25674289]
[1750273084184,0.59327945,103780.0,103770.0,0.24710685]
[1750273084415,0.60291512,103780.0,103770.0,0.21700703]
[1750273084644,0.5932801,103780.0,103770.0,0.20737053]
[1750273084849,0.5932801,103780.0,103770.0,0.01463669]
[1750273085056,0.6149448,103780.0,103770.0,0.005]
[1750273085716,0.2452866,103780.0,103770.0,0.005]
[1750273085868,0.6149448,103780.0,103770.0,0.005]
[1750273086291,5.23770561,103780.0,103770.0,0.005]
[1750273087194,5.23670561,103780.0,103770.0,0.003]
[1750273087402,0.34,103780.0,103760.0,0.4658027]
[1750273087603,0.21063511,103780.0,103770.0,0.28674289]
[1750273087818,0.01063511,103780.0,103770.0,0.28674289]
[1750273088185,0.002,103780.0,103770.0,0.28774289]
[1750273088386,0.02127023,103780.0,103770.0,0.28774289]
[1750273088595,0.001,103780.0,103770.0,0.28674289]
[1750273088793,0.60191512,103780.0,103770.0,0.0332]
[1750273088997,0.5836448,103780.0,103770.0,0.19373393]
[1750273089251,0.5836448,103780.0,103770.0,0.001]
[1750273089771,4.37253544,103770.0,103760.0,0.001]
[1750273089971,5.56263445,103770.0,103760.0,0.001]
[1750273090172,0.58823078,103760.0,103750.0,0.00142456]
[1750273090399,0.58823078,103760.0,103750.0,0.00189718]
[1750273090400,5.53365394,103760.0,103750.0,0.00189718]
[1750273090572,4.68355493,103760.0,103750.0,0.00189718]
[1750273090784,0.92168547,103760.0,103750.0,0.20430681]
[1750273090976,0.55202727,103760.0,103750.0,0.00189718]
[1750273091182,0.91204813,103760.0,103750.0,0.00189718]
[1750273091565,1.34547376,103760.0,103750.0,0.00289718]
[1750273091784,5.55158052,103760.0,103750.0,0.00289718]
[1750273091988,5.58338052,103760.0,103750.0,0.00289718]
[1750273092191,5.67242458,103760.0,103750.0,0.00289718]
[1750273092622,4.94764903,103760.0,103750.0,0.00289718]
[1750273092840,5.68696543,103760.0,103750.0,0.00289718]
[1750273093168,0.24426796,103740.0,103730.0,0.01632789]
[1750273093372,5.38813377,103740.0,103730.0,0.01632789]
[1750273093575,5.31943166,103740.0,103730.0,0.22841649]
[1750273093795,4.46914275,103740.0,103730.0,0.22841667]
[1750273094006,4.82916194,103740.0,103730.0,0.23805625]
[1750273094222,0.91085623,103740.0,103730.0,0.23805625]
[1750273094422,0.92049524,103740.0,103730.0,0.23805625]
[1750273094618,1.14392195,103740.0,103730.0,0.22941667]
[1750273094818,1.13428294,103740.0,103730.0,0.21977636]
[1750273095015,0.93185334,103740.0,103730.0,0.21877636]
[1750273095236,0.55355631,103740.0,103730.0,0.24005634]
[1750273095440,20.92321451,103740.0,103730.0,0.24005653]
[1750273095667,20.92321451,103740.0,103730.0,0.24969629]
[1750273095873,20.004,103740.0,103730.0,0.31309629]
[1750273096504,20.003,103740.0,103730.0,0.31209629]
[1750273096950,20.004,103740.0,103730.0,0.31309629]
[1750273097168,20.3736582,103740.0,103730.0,0.31309629]
[1750273097380,20.004,103740.0,103730.0,0.31309629]
[1750273097575,20.004,103740.0,103730.0,0.40933805]
[1750273100822,20.004,103740.0,103730.0,0.83291625]
[1750273101033,20.004,103740.0,103730.0,0.88291625]
[1750273101215,20.004,103740.0,103730.0,1.48558556]
[1750273101430,20.004,103740.0,103730.0,1.51442199]
[1750273101644,20.004,103740.0,103730.0,1.51342199]
[1750273101645,20.003,103740.0,103730.0,1.51342199]
[1750273102081,20.004,103740.0,103730.0,0.83630736]
[1750273102290,20.004,103740.0,103730.0,1.08911805]
[1750273102511,20.001,103740.0,103730.0,0.40783805]
[1750273102719,20.0,103740.0,103730.0,0.58999805]
[1750273102917,20.002,103740.0,103730.0,0.59599805]
[1750273103350,20.0,103740.0,103730.0,0.58999805]
[1750273103559,20.002,103740.0,103730.0,0.59499805]
[1750273103934,20.002,103740.0,103730.0,0.40783805]
[1750273104142,20.003,103740.0,103730.0,0.49783629]
[1750273104779,20.004,103740.0,103730.0,0.50083629]
[1750273105204,20.01263864,103740.0,103730.0,0.49783629]
[1750273105404,20.003,103740.0,103730.0,0.49783629]
[1750273105604,20.004,103740.0,103730.0,0.59703805]
[1750273106071,20.004,103740.0,103730.0,0.59711805]
[1750273106494,20.004,103740.0,103730.0,0.59719805]
[1750273107141,20.004,103740.0,103730.0,0.59711805]
[1750273107537,20.004,103740.0,103730.0,0.59707805]
[1750273109058,19.82996161,103740.0,103730.0,0.59707805]
[1750273109265,19.82996161,103740.0,103730.0,0.65287805]
[1750273111292,19.82996161,103740.0,103730.0,0.41483805]
[1750273111511,19.82996161,103740.0,103730.0,0.59683805]
[1750273112151,19.82996161,103740.0,103730.0,0.41483805]
[1750273112381,19.82996161,103740.0,103730.0,0.59683805]
[1750273113051,19.82996161,103740.0,103730.0,0.64683805]
[1750273113314,19.82996161,103740.0,103730.0,1.01649625]
[1750273113757,19.82996161,103740.0,103730.0,0.64431805]
[1750273114226,19.82996161,103740.0,103730.0,0.41231805]
[1750273114404,19.82696161,103740.0,103730.0,0.69531805]
[1750273114674,19.82596161,103740.0,103730.0,0.69231805]
[1750273114894,19.82796161,103740.0,103730.0,0.69831805]
[1750273115108,19.82896161,103740.0,103730.0,0.70231805]
[1750273115320,19.82896161,103740.0,103730.0,1.07197625]
[1750273115783,19.82896161,103740.0,103730.0,1.12197625]
[1750273116017,19.79002265,103740.0,103730.0,1.4775171]
[1750273116249,19.5728445,103740.0,103730.0,1.4151171]
[1750273116464,19.03052425,103740.0,103730.0,1.91049171]
[1750273116698,18.49590287,103740.0,103730.0,1.93549171]
[1750273116918,17.52583634,103740.0,103730.0,1.93549171]
[1750273117128,17.1177659,103740.0,103730.0,2.08079258]
[1750273117340,17.11464049,103740.0,103730.0,2.08179258]
[1750273117522,17.11864049,103740.0,103730.0,2.08179258]
[1750273117754,17.11465501,103740.0,103730.0,2.07679258]
[1750273117965,16.96401277,103740.0,103730.0,2.44845078]
[1750273118172,16.79211277,103740.0,103730.0,2.07879258]
[1750273118386,16.78474081,103740.0,103730.0,2.00179258]
[1750273118595,16.79774081,103740.0,103730.0,2.07879258]
[1750273118815,16.79774081,103740.0,103730.0,2.10787456]
[1750273119062,16.52191789,103740.0,103730.0,2.47853276]
[1750273119271,15.69836313,103740.0,103730.0,4.41756876]
[1750273119492,15.68871545,103740.0,103730.0,2.60254256]
[1750273119711,15.68871545,103740.0,103730.0,1.57628995]
[1750273119919,15.68871545,103740.0,103730.0,2.01339456]
[1750273119920,15.20444545,103740.0,103730.0,2.01339456]
[1750273120137,15.20444545,103740.0,103730.0,1.73868995]
[1750273120356,15.20444545,103740.0,103730.0,1.99412456]
[1750273122672,15.20444545,103740.0,103730.0,2.06912456]
[1750273122892,15.20444545,103740.0,103730.0,1.71941995]
[1750273123105,15.20444545,103740.0,103730.0,1.5234391]
[1750273123322,15.20444545,103740.0,103730.0,1.8303191]
[1750273123530,15.20444545,103740.0,103730.0,1.84485995]
[1750273123773,15.20444545,103740.0,103730.0,1.76985995]
[1750273124422,15.17444545,103740.0,103730.0,1.84285995]
[1750273124862,15.17444545,103740.0,103730.0,1.84385995]
[1750273124863,12.68183545,103740.0,103730.0,1.84385995]
[1750273125074,12.67383545,103740.0,103730.0,1.79681495]
[1750273125284,12.67483545,103740.0,103730.0,1.79869495]
[1750273125926,12.67383545,103740.0,103730.0,1.87169495]
[1750273126134,12.67383545,103740.0,103730.0,1.87069495]
[1750273126135,12.67583545,103740.0,103730.0,1.87069495]
[1750273126335,12.67583545,103740.0,103730.0,1.63297495]
[1750273126546,12.67383545,103740.0,103730.0,1.87057495]
[1750273126785,12.66883545,103740.0,103730.0,1.87057495]
[1750273127006,12.66983545,103740.0,103730.0,1.87057495]
[1750273127224,12.67283545,103740.0,103730.0,1.87057495]
[1750273127464,12.66983545,103740.0,103730.0,1.87057495]
[1750273127669,12.67483545,103740.0,103730.0,1.87057495]
[1750273128092,12.67383545,103740.0,103730.0,1.87057495]